[Event "Commonwealth CC-Open 2024"]
[Site "Malacca"]
[Date "2024.02.22"]
[Round "4.1"]
[White "Das, Sayantan"]
[Black "Sethuraman, S.P."]
[Result "1/2-1/2"]
[ECO "B90"]
[WhiteElo "2514"]
[BlackElo "2594"]
[Annotator "TA"]
[PlyCount "38"]
[EventDate "2024.02.21"]
[EventCountry "MAS"]
[SourceTitle "playchess.com"]
[Source "ChessBase"]
[SourceQuality "1"]
[TimeControl "5400+30"]

{[%evp 11,38,18,20,15,18,12,39,19,14,10,40,6,14,12,44,7,12,14,19,15,5,7,19,18,45,43,37,0,55]} 1. e4 {[%emt 0:00:30]} c5 {[%emt 0:00:10]} 2. Nf3 {[%emt 0:00:11]} d6 {[%emt 0:00:18]} 3. d4 {[%emt 0:00:09]} cxd4 {[%emt 0:00:08]} 4. Nxd4 {[%emt 0:00:04]} Nf6 {[%emt 0:00:14]} 5. Nc3 {[%emt 0:00:05]} a6 {[%emt 0:00:08]} 6. Bd3 {[%emt 0:00:44]} g6 {[%emt 0:00:30]} 7. f3 {[%emt 0:00:30]} e5 {[%emt 0:00:30]} 8. Nb3 {[%emt 0:00:30]} Be6 {[%emt 0:00:30]} 9. Be3 {[%emt 0:00:30] White is slightly better.} Nbd7 {[%emt 0:00:30]} 10. Qd2 {[%emt 0:00:30]} b5 {[%emt 0:00:30][%cal Bb7b5,Bb5c4][%mdl 32]} 11. O-O-O {[%emt 0:00:30]} Be7 {[%emt 0:00:30]} 12. Kb1 {[%emt 0:00:30]} Nb6 {[%emt 0:00:30]} 13. a3 {[%emt 0:00:30]} Nc4 {[%emt 0:00:30]} 14. Bxc4 {[%emt 0:00:30]} bxc4 {[%emt 0:00:30]} 15. Nc1 {[%emt 0:00:30]} Rb8 {[%emt 0:00:30]} 16. Ka1 {[%emt 0:00:30]} Qc7 {[%emt 0:00:30] [#] And now ...Qb7 would win.} 17. N1e2 {[%emt 0:00:30]} O-O {[%emt 0:00:30]} 18. Bg5 {[%emt 0:00:30]} Rfd8 {[%emt 0:00:30]} 19. Qc1 {[%emt 0:00:30]} Qc5 {[%emt 0:00:30] Weighted Error Value: White=0.11 (very precise) /Black=0.10 (very precise) .  Mistake:       	---       	Black=1      Inaccurate:     	White=3     	Black=3      OK:         	White=4     	Black=4      Best:        	White=1     	---} (19... Rd7 $11) 1/2-1/2

[Event "Commonwealth CC-Open 2024"]
[Site "Malacca"]
[Date "2024.02.22"]
[Round "4.2"]
[White "Vaibhav, Suri"]
[Black "Iniyan, Pa"]
[Result "1-0"]
[ECO "B22"]
[WhiteElo "2596"]
[BlackElo "2515"]
[Annotator "RC"]
[PlyCount "45"]
[EventDate "2024.02.21"]
[EventCountry "MAS"]
[SourceTitle "playchess.com"]
[Source "ChessBase"]
[SourceQuality "1"]
[TimeControl "5400+30"]

1. e4 c5 2. c3 d5 3. exd5 Qxd5 4. d4 Nc6 5. Nf3 Nf6 6. Be3 cxd4 7. cxd4 e6 8. Nc3 Qa5 9. Bd3 Nb4 10. Bb5+ Bd7 11. Bxd7+ Nxd7 12. O-O Nd5 13. Qb3 Nxe3 14. fxe3 Rb8 15. d5 exd5 16. Rad1 Be7 17. Nxd5 Bd8 18. Qc2 O-O 19. Qf5 Nf6 20. Ng5 Kh8 21. b4 Qb5 22. a4 Qd7 {[%emt 1:01:10]} 23. Qb1 {[%emt 1:14:26]} 1-0

[Event "Commonwealth CC-Open 2024"]
[Site "Malacca"]
[Date "2024.02.22"]
[Round "4.4"]
[White "Rohith Krishna S"]
[Black "Lalit Babu M R"]
[Result "1/2-1/2"]
[ECO "D66"]
[WhiteElo "2410"]
[BlackElo "2525"]
[Annotator "RC"]
[PlyCount "72"]
[EventDate "2024.02.21"]
[EventCountry "MAS"]
[SourceTitle "playchess.com"]
[Source "ChessBase"]
[SourceQuality "1"]
[TimeControl "5400+30"]

1. d4 Nf6 2. c4 e6 3. Nf3 d5 4. Nc3 Nbd7 5. Bg5 Be7 6. e3 O-O 7. Rc1 c6 8. Bd3 dxc4 9. Bxc4 h6 10. Bh4 b5 11. Bd3 Bb7 12. O-O Rc8 13. Qe2 a6 14. Rfd1 c5 15. dxc5 Rxc5 16. Rc2 Qc8 17. Rdc1 Qa8 18. a3 Rd8 19. b4 Rcc8 20. Nb1 Rxc2 21. Rxc2 Nb6 22. Nbd2 Bxf3 23. gxf3 Qd5 24. Bxf6 Bxf6 25. Be4 Qg5+ 26. Kh1 Qh5 27. Qf1 Bc3 28. Rxc3 Rxd2 29. Rd3 Nc4 30. Rxd2 Nxd2 31. Qd3 f5 32. Qxd2 fxe4 33. fxe4 Qf3+ 34. Kg1 Qg4+ 35. Kf1 Qxe4 36. Qd6 {[%emt 1:23:24]} Qc4+ {[%emt 1:22:43]} 1/2-1/2

[Event "Commonwealth CC-Open 2024"]
[Site "Malacca"]
[Date "2024.02.22"]
[Round "4.5"]
[White "Novak, Attila Robert"]
[Black "Vignesh N R"]
[Result "1/2-1/2"]
[ECO "D77"]
[WhiteElo "2130"]
[BlackElo "2517"]
[Annotator "RC"]
[PlyCount "66"]
[EventDate "2024.02.21"]
[EventCountry "MAS"]
[SourceTitle "playchess.com"]
[Source "ChessBase"]
[SourceQuality "1"]
[TimeControl "5400+30"]

1. d4 Nf6 2. Nf3 d5 3. g3 g6 4. Bg2 Bg7 5. O-O O-O 6. c4 dxc4 7. Na3 Nc6 8. Nxc4 Be6 9. Nce5 Bd5 10. Nxc6 Bxc6 11. Bf4 Bd5 12. Be5 c6 13. Qc2 Qb6 14. Nd2 Qa6 15. e4 Be6 16. Nb3 b6 17. Rfd1 Rac8 18. Nc1 Rfd8 19. Nd3 Qc4 20. Qxc4 Bxc4 21. b3 Ba6 22. Rac1 Bh6 23. Rc3 Nd7 24. Bf4 Bg7 25. Nb4 Bb7 26. Rcd3 a5 27. Nc2 Ba6 28. R3d2 Re8 29. Bh3 e6 30. Bf1 Bxf1 31. Kxf1 e5 32. dxe5 Nxe5 {[%emt 1:29:37]} 33. Kg2 {[%emt 1:28:55]} c5 {[%emt 1:30:07]} 1/2-1/2

[Event "Commonwealth CC-Open 2024"]
[Site "Malacca"]
[Date "2024.02.22"]
[Round "4.8"]
[White "Visakh N R"]
[Black "Liu, Yi"]
[Result "1/2-1/2"]
[ECO "A12"]
[WhiteElo "2549"]
[BlackElo "2260"]
[Annotator "RC"]
[PlyCount "132"]
[EventDate "2024.02.21"]
[EventCountry "MAS"]
[SourceTitle "playchess.com"]
[Source "ChessBase"]
[SourceQuality "1"]
[TimeControl "5400+30"]

1. Nf3 d5 2. e3 Nf6 3. c4 c6 4. b3 Bf5 5. Be2 h6 6. Ba3 Nbd7 7. O-O e5 8. Bxf8 Kxf8 9. cxd5 cxd5 10. Qc1 Kg8 11. Nc3 Qe7 12. Bb5 Nf8 13. d4 e4 14. Ne5 a6 15. Be2 N8d7 16. Nxd7 Bxd7 17. Na4 Rc8 18. Nc5 b6 19. Bxa6 Rc7 20. Nxd7 Rxc1 21. Nxf6+ Qxf6 22. Raxc1 Kh7 23. a4 Qd6 24. Bb5 Qb4 25. Rc7 f5 26. g3 Rf8 27. Rc6 Rf6 28. Rxf6 gxf6 29. Rc1 Qxb3 30. Kg2 h5 31. h4 Kg7 32. Bd7 Kf8 33. Bb5 Ke7 34. Rc7+ Kd8 35. Rd7+ Kc8 36. Rf7 f4 37. gxf4 Qd1 38. Rg7 Qf3+ 39. Kg1 Qd1+ 40. Kh2 Qf3 41. Rg2 Kc7 42. Ba6 Qd1 43. Rg7+ Kd8 44. Rg8+ Kc7 45. Bb5 Qf3 46. Rg7+ Kc8 47. Ba6+ Kb8 48. Rg2 Kc7 49. Bf1 Qd1 50. Rg7+ Kb8 51. Ba6 Qf3 52. Rg2 Kc7 53. f5 Qxf5 54. Be2 Qh7 55. Rg1 Kd6 56. Rb1 Kc7 57. Rg1 Kb7 58. Rg3 Qf7 59. Kg1 Kc6 60. Bb5+ Kd6 61. Be2 Qa7 62. Bb5 Qf7 63. Be2 Ke7 64. Kg2 Kf8 65. Kg1 Qe8 66. Bd1 {[%emt 1:46:42]} Qf7 {[%emt 1:59:52]} 1/2-1/2

[Event "Commonwealth CC-Open 2024"]
[Site "Malacca"]
[Date "2024.02.22"]
[Round "4.10"]
[White "Sabri, Mohd Saprin"]
[Black "Nandhidhaa, P V"]
[Result "0-1"]
[ECO "A13"]
[WhiteElo "1922"]
[BlackElo "2305"]
[Annotator "RC"]
[PlyCount "136"]
[EventDate "2024.02.21"]
[EventCountry "MAS"]
[SourceTitle "playchess.com"]
[Source "ChessBase"]
[SourceQuality "1"]
[TimeControl "5400+30"]

1. Nf3 d5 2. c4 e6 3. g3 Nf6 4. Bg2 d4 5. O-O Nc6 6. d3 e5 7. b4 Nxb4 8. Nxe5 Bd6 9. a3 Na6 10. Nf3 O-O 11. Nbd2 c5 12. Nb3 h6 13. e3 dxe3 14. Bxe3 Be6 15. h3 Qd7 16. Kh2 Rac8 17. Qd2 Rfd8 18. Qc3 Nh7 19. Rad1 Nb8 20. Bc1 Qc7 21. Bb2 Bf8 22. Ne5 Nd7 23. Rfe1 Nxe5 24. Rxe5 Nf6 25. Rde1 Rd7 26. Nc1 b6 27. Ne2 Bd6 28. Re3 Rcd8 29. Rf3 Ne8 30. Re3 h5 31. Kh1 Re7 32. Ng1 Bc8 33. Nf3 Bb7 34. Nh4 Bxg2+ 35. Kxg2 Qb7+ 36. Kg1 Qd7 37. Nf5 Qxf5 38. Rxe7 Bxe7 39. Rxe7 Kf8 40. Re3 f6 41. Kg2 Nc7 42. Rf3 Qe6 43. Re3 Qc6+ 44. Kg1 h4 45. Qe1 hxg3 46. fxg3 Re8 47. Rxe8+ Nxe8 48. Qd1 Nd6 49. Kf2 Qd7 50. Qh5 Nf7 51. Ke2 Qa4 52. Kd2 Qb3 53. Bc3 Qa2+ 54. Ke3 Qxa3 55. Qd5 Qa4 56. h4 Qe8+ 57. Kf3 Nd8 58. g4 Qc6 59. Ke4 Ke7 60. g5 fxg5 61. hxg5 Qe6+ 62. Qe5 g6 63. Qxe6+ Kxe6 64. Be5 Nf7 65. Bf4 Nd6+ 66. Ke3 a6 67. Kd2 b5 68. cxb5 {[%emt 1:39:23]} axb5 {[%emt 2:04:30]} 0-1

[Event "Commonwealth CC-Open 2024"]
[Site "Malacca"]
[Date "2024.02.22"]
[Round "4.13"]
[White "Srija, Seshadri"]
[Black "Kavin Mohan"]
[Result "1/2-1/2"]
[ECO "C07"]
[WhiteElo "2291"]
[BlackElo "1803"]
[Annotator "RC"]
[PlyCount "102"]
[EventDate "2024.02.21"]
[EventCountry "MAS"]
[SourceTitle "playchess.com"]
[Source "ChessBase"]
[SourceQuality "1"]
[TimeControl "5400+30"]

1. e4 e6 2. d4 d5 3. Nd2 c5 4. exd5 Qxd5 5. Ngf3 cxd4 6. g3 Bb4 7. Bg2 Qe4+ 8. Kf1 Qd5 9. Nb3 Nc6 10. Nfxd4 Qc4+ 11. Qe2 Qxe2+ 12. Kxe2 Bd7 13. Rd1 Nf6 14. Nxc6 bxc6 15. Bg5 Rc8 16. c4 e5 17. Bxf6 gxf6 18. Rac1 Be7 19. c5 f5 20. Na5 e4 21. f3 Rb8 22. Rc2 Rb5 23. Nb3 Be6 24. Nd4 Rxc5 25. Rxc5 Bxc5 26. Nxe6 exf3+ 27. Bxf3 fxe6 28. Bxc6+ Ke7 29. Rd7+ Kf6 30. Ba4 h5 31. h4 Rg8 32. Kf3 Rg4 33. Bc6 Bd4 34. Rh7 Bxb2 35. Be8 Rg7 36. Rh6+ Ke7 37. Bxh5 Be5 38. Bg6 Kf8 39. Rh8+ Ke7 40. Rh6 Kf8 41. Rh8+ Ke7 42. Rh7 Rxh7 43. Bxh7 Bg7 44. g4 fxg4+ 45. Kxg4 Kf6 46. Kh5 Bf8 47. Bd3 Bg7 48. Bc4 Bf8 49. Ba6 Bg7 50. a4 Bf8 51. Bb7 {[%emt 1:42:17]} a5 {[%emt 0:52:58]} 1/2-1/2

[Event "Commonwealth CC-Open 2024"]
[Site "Malacca"]
[Date "2024.02.22"]
[Round "4.14"]
[White "Lim, Zhuo Ren"]
[Black "Shen, Ree Herng"]
[Result "1-0"]
[ECO "D85"]
[WhiteElo "2218"]
[BlackElo "1820"]
[Annotator "RC"]
[PlyCount "53"]
[EventDate "2024.02.21"]
[EventCountry "MAS"]
[SourceTitle "playchess.com"]
[Source "ChessBase"]
[SourceQuality "1"]
[TimeControl "5400+30"]

1. d4 Nf6 2. c4 g6 3. Nc3 d5 4. cxd5 Nxd5 5. e4 Nxc3 6. bxc3 Bg7 7. Be3 c5 8. Rc1 Qa5 9. Qd2 O-O 10. Nf3 Bg4 11. d5 Nd7 12. c4 Qc7 13. Be2 Bxf3 14. Bxf3 Qe5 15. O-O b6 16. g3 Rad8 17. Bg2 Qd6 18. f4 f6 19. Bh3 Rfe8 20. Be6+ Kh8 21. h4 Rb8 22. Qh2 Nf8 23. Bf7 Bh6 24. h5 Kg7 25. Bxe8 Rxe8 26. g4 gxh5 {[%emt 1:35:16]} 27. g5 {[%emt 1:09:29]} 1-0

[Event "Commonwealth CC-Open 2024"]
[Site "Malacca"]
[Date "2024.02.22"]
[Round "4.15"]
[White "Genkeswaran, Genivan"]
[Black "Gong, Qianyun"]
[Result "1-0"]
[ECO "A85"]
[WhiteElo "1805"]
[BlackElo "2263"]
[Annotator "RC"]
[PlyCount "96"]
[EventDate "2024.02.21"]
[EventCountry "MAS"]
[SourceTitle "playchess.com"]
[Source "ChessBase"]
[SourceQuality "1"]
[TimeControl "5400+30"]

1. d4 e6 2. c4 f5 3. Nc3 Nf6 4. Nf3 b6 5. e3 Bb7 6. Be2 Bb4 7. Bd2 O-O 8. Qb3 a5 9. a3 Bxc3 10. Bxc3 Ne4 11. Qc2 d6 12. O-O Nd7 13. Rad1 Rf6 14. d5 e5 15. Nd2 Nxc3 16. Qxc3 a4 17. f4 Qe7 18. Nf3 Re8 19. g3 Nc5 20. Rfe1 Bc8 21. Bf1 Bd7 22. Bg2 Rh6 23. Ng5 e4 24. Bf1 Rf6 25. h4 h6 26. Nh3 Rb8 27. Kh2 b5 28. Ng1 bxc4 29. Bxc4 Be8 30. Ne2 Bb5 31. Bxb5 Rxb5 32. Nd4 Rb6 33. Re2 Rf8 34. Rg1 Qf7 35. g4 Qe7 36. Kh3 Rb3 37. Nxb3 axb3 38. gxf5 Rxf5 39. Reg2 Rf7 40. f5 Kh7 41. Rg4 Nd3 42. Rf1 Qd7 43. Qd4 Nc5 44. Kh2 Kg8 45. Rfg1 Kf8 46. Rf4 Qb5 47. Rg2 Rf6 48. Rfg4 Qd7 {[%emt 1:37:56]} 1-0

[Event "Commonwealth CC-Open 2024"]
[Site "Malacca"]
[Date "2024.02.22"]
[Round "4.16"]
[White "Mujahid Bin Yazeed"]
[Black "Wong, Jianwen"]
[Result "0-1"]
[ECO "B07"]
[WhiteElo "1797"]
[BlackElo "2254"]
[Annotator "RC"]
[PlyCount "40"]
[EventDate "2024.02.21"]
[EventCountry "MAS"]
[SourceTitle "playchess.com"]
[Source "ChessBase"]
[SourceQuality "1"]
[TimeControl "5400+30"]

1. e4 d6 2. d4 Nf6 3. Nc3 e5 4. dxe5 dxe5 5. Bd3 c6 6. Nf3 Qc7 7. Qe2 Nbd7 8. O-O Nc5 9. Ne1 Ne6 10. Be3 Bd6 11. Nb1 h5 12. c4 Ng4 13. Nc2 Nxe3 14. Qxe3 Bc5 15. Qd2 a5 16. Nc3 h4 17. a3 a4 18. Kh1 Nf4 19. h3 Bxh3 20. gxh3 {[%emt 0:57:44]} Qd7 {[%emt 0:38:52]} 0-1

[Event "Commonwealth CC-Open 2024"]
[Site "Malacca"]
[Date "2024.02.22"]
[Round "4.17"]
[White "Pon, Matt"]
[Black "Kapoor, Satvik"]
[Result "1/2-1/2"]
[ECO "B30"]
[WhiteElo "2202"]
[BlackElo "1791"]
[Annotator "RC"]
[PlyCount "73"]
[EventDate "2024.02.21"]
[EventCountry "MAS"]
[SourceTitle "playchess.com"]
[Source "ChessBase"]
[SourceQuality "1"]
[TimeControl "5400+30"]

1. e4 c5 2. Nf3 d6 3. g3 Nf6 4. d3 Nc6 5. Bg2 e6 6. O-O Be7 7. Re1 Qc7 8. c3 e5 9. a3 O-O 10. b4 b5 11. a4 bxa4 12. b5 Nd8 13. Rxa4 Ne6 14. Re2 Bd7 15. c4 a6 16. Rea2 Bc8 17. Nc3 Qb6 18. Bg5 Nc7 19. R4a3 Rb8 20. bxa6 Nxa6 21. Nh4 Nb4 22. Rb2 Qc7 23. Nb5 Qb6 24. Bd2 Bd7 25. Nf5 Bxf5 26. exf5 d5 27. Nc3 Qd6 28. Nb5 Qd7 29. Ra7 Rb7 30. Rxb7 Qxb7 31. Bxb4 cxb4 32. Nc3 Qa7 33. Nxd5 Nxd5 34. Bxd5 Qd4 35. Rb1 Bc5 36. Qc2 Qc3 {[%emt 0:53:43]} 37. Qd1 {[%emt 1:33:02]} 1/2-1/2

[Event "Commonwealth CC-Open 2024"]
[Site "Malacca"]
[Date "2024.02.22"]
[Round "4.18"]
[White "Rebecca Jesumarian"]
[Black "Vrashank Chouhan"]
[Result "0-1"]
[ECO "E01"]
[WhiteElo "1805"]
[BlackElo "2046"]
[Annotator "RC"]
[PlyCount "66"]
[EventDate "2024.02.21"]
[EventCountry "MAS"]
[SourceTitle "playchess.com"]
[Source "ChessBase"]
[SourceQuality "1"]
[TimeControl "5400+30"]

1. d4 d5 2. c4 e6 3. Nf3 Nf6 4. g3 c6 5. Bg2 Nbd7 6. O-O Bd6 7. Nc3 O-O 8. Nd2 Bc7 9. e4 dxe4 10. Ndxe4 Nxe4 11. Nxe4 e5 12. d5 cxd5 13. cxd5 h6 14. d6 Bb6 15. Nc3 Nc5 16. Be3 Bf5 17. Bxc5 Bxc5 18. Bxb7 Rb8 19. Qf3 Bd4 20. Nb5 Bxb2 21. Bc6 Bxa1 22. Qxf5 Rb6 23. Qe4 Bd4 24. Qd5 Qf6 25. Nxd4 exd4 26. Rd1 Rd8 27. Re1 Rxd6 28. Re8+ Kh7 29. Qe4+ Qg6 30. Qe7 Rbxc6 31. Qf8 Qf6 32. Qg8+ Kg6 33. Re4 {[%emt 1:39:25]} Rd5 {[%emt 1:26:55]} 0-1

[Event "Commonwealth CC-Open 2024"]
[Site "Malacca"]
[Date "2024.02.22"]
[Round "4.20"]
[White "Dabarera, G W D M"]
[Black "Anderson, Gavin"]
[Result "1-0"]
[ECO "B14"]
[WhiteElo "1771"]
[BlackElo "2159"]
[Annotator "RC"]
[PlyCount "83"]
[EventDate "2024.02.21"]
[EventCountry "MAS"]
[SourceTitle "playchess.com"]
[Source "ChessBase"]
[SourceQuality "1"]
[TimeControl "5400+30"]

1. e4 c6 2. d4 d5 3. exd5 cxd5 4. c4 Nf6 5. Nc3 e6 6. c5 Be7 7. Nf3 Ne4 8. Bb5+ Bd7 9. Qb3 b6 10. Bxd7+ Nxd7 11. c6 Ndf6 12. Bf4 Bd6 13. Ne5 Nxc3 14. Qxc3 Ne4 15. Qb3 Qc7 16. f3 Nf6 17. g4 O-O 18. Rc1 b5 19. O-O Rab8 20. Rc2 Rfc8 21. Rfc1 Rb6 22. Qe3 Ne8 23. Kg2 a5 24. Bg3 Bxe5 25. dxe5 Ra6 26. Qc5 Qb6 27. Qe7 Qc7 28. Qc5 Qb6 29. Qe7 Qc7 30. Qa3 Qd8 31. Bf2 Rc7 32. Qd3 Qb8 33. Rc5 Rb6 34. R5c2 Ra6 35. a4 Ra8 36. axb5 Rc8 37. b6 Qxe5 38. b7 Rab8 39. Bg3 Qf6 40. Bxb8 Rxb8 41. c7 Nxc7 {[%emt 1:44:28]} 42. Rxc7 {[%emt 1:45:31]} 1-0

[Event "Commonwealth CC-Open 2024"]
[Site "Malacca"]
[Date "2024.02.22"]
[Round "4.21"]
[White "Sanudula, K M Dahamdi"]
[Black "Smith, Robert W"]
[Result "1-0"]
[ECO "A45"]
[WhiteElo "1744"]
[BlackElo "2152"]
[Annotator "ChessBase"]
[PlyCount "173"]
[EventDate "2024.02.21"]
[EventCountry "MAS"]
[SourceTitle "playchess.com"]
[Source "ChessBase"]
[SourceQuality "1"]
[TimeControl "5400+30"]

1. d4 Nf6 2. e3 g6 3. Bd3 d6 4. f4 Bg7 5. Nf3 O-O 6. e4 c5 7. c3 cxd4 8. cxd4 Bg4 9. Be3 Nc6 10. Nbd2 Nd7 11. Qb3 Bxf3 12. Nxf3 Qb6 13. Qxb6 Nxb6 14. Kd2 d5 15. e5 e6 16. Rac1 Rfc8 17. Ke2 Nb4 18. Bd2 Nxd3 19. Kxd3 Bf8 20. Rxc8 Rxc8 21. Rc1 Rxc1 22. Bxc1 Be7 23. g4 h5 24. g5 Kf8 25. b3 Ke8 26. Bb2 Kd7 27. Nd2 Kc6 28. Kc3 a5 29. a3 Na8 30. Kd3 Nc7 31. Bc1 Nb5 32. Nb1 Na7 33. Nd2 Kb5 34. Nb1 Ka6 35. Nd2 Nc6 36. Bb2 Bd8 37. Nb1 Be7 38. Nd2 b5 39. Kc2 Bd8 40. Kd3 Be7 41. Nb1 Na7 42. Nd2 Nc8 43. Bc1 Nb6 44. Nf1 Nd7 45. Nd2 Nb8 46. Bb2 Nc6 47. Nb1 Kb6 48. Nd2 a4 49. b4 Bxb4 50. axb4 Nxb4+ 51. Kc3 Nc6 52. Kc2 b4 53. Ba1 Kb5 54. Bb2 Na5 55. Bc1 Nc4 56. Nb1 a3 57. Kb3 Na5+ 58. Ka2 Ka4 59. Bd2 Nc4 60. Be1 Na5 61. Nxa3 Nc6 62. Nb1 Nxd4 63. Bf2 Nf3 64. h3 d4 65. Kb2 d3 66. Be3 Ne1 67. Kc1 Nf3 68. Nd2 Ne1 69. Nc4 Kb3 70. Nb2 Ng2 71. Bd2 Nh4 72. Nxd3 Nf3 73. Bxb4 Kc4 74. Kc2 Ng1 75. Bd2 Nxh3 76. Be3 Kd5 77. Kd2 Ke4 78. Ke2 h4 79. Nc5+ Kf5 80. Kf3 Nxg5+ 81. fxg5 Kxe5 82. Nd7+ Kf5 83. Nf6 e5 84. Bc1 Ke6 85. Kg4 h3 86. Kxh3 Kf5 {[%emt 2:13:30]} 87. Kg3 {[%emt 1:43:22]} 1-0

[Event "Commonwealth CC-Open 2024"]
[Site "Malacca"]
[Date "2024.02.22"]
[Round "4.24"]
[White "Mahmood Shah, Mukhriez Shah"]
[Black "Yeo, Klaus Lucas"]
[Result "1-0"]
[ECO "C14"]
[WhiteElo "2007"]
[BlackElo "1549"]
[Annotator "RC"]
[PlyCount "85"]
[EventDate "2024.02.21"]
[EventCountry "MAS"]
[SourceTitle "playchess.com"]
[Source "ChessBase"]
[SourceQuality "1"]
[TimeControl "5400+30"]

1. e4 e6 2. d4 d5 3. Nc3 Nf6 4. Bg5 Be7 5. e5 Nfd7 6. Bxe7 Qxe7 7. f4 a6 8. Nf3 c5 9. Bd3 Nc6 10. O-O b5 11. Qd2 cxd4 12. Ne2 Bb7 13. Nexd4 Nc5 14. Nxc6 Bxc6 15. Nd4 Rc8 16. f5 g6 17. f6 Qc7 18. Rae1 Bb7 19. Kh1 Ne4 20. Bxe4 dxe4 21. Nxe6 fxe6 22. f7+ Ke7 23. Qg5+ Kd7 24. Rd1+ Bd5 25. Rxd5+ exd5 26. Rf6 Qc5 27. e6+ Ke7 28. Rxg6+ Kd6 29. Rh6 Qf2 30. h4 b4 31. e7+ Kc5 32. Rf6 Qe1+ 33. Kh2 Rhg8 34. fxg8=Q Rxg8 35. Qxg8 Qxh4+ 36. Kg1 Qe1+ 37. Rf1 Qe3+ 38. Kh2 Qh6+ 39. Kg3 Qe3+ 40. Kh4 Qh6+ 41. Kg4 Qh2 42. Kf5 Qh5+ {[%emt 1:51:30]} 43. Ke6 {[%emt 1:32:59]} 1-0

[Event "Commonwealth CC-Open 2024"]
[Site "Malacca"]
[Date "2024.02.22"]
[Round "4.25"]
[White "Muhammed, Shuaau"]
[Black "Muraley, Rittesh"]
[Result "1-0"]
[ECO "B12"]
[WhiteElo "2093"]
[BlackElo "1663"]
[Annotator "RC"]
[PlyCount "95"]
[EventDate "2024.02.21"]
[EventCountry "MAS"]
[SourceTitle "playchess.com"]
[Source "ChessBase"]
[SourceQuality "1"]
[TimeControl "5400+30"]

1. e4 c6 2. d4 d5 3. e5 Bf5 4. h4 h5 5. Bd3 Bxd3 6. Qxd3 e6 7. Bg5 Qb6 8. Nd2 Nd7 9. c4 Qa6 10. Qc2 Ne7 11. Ngf3 dxc4 12. Nxc4 Nd5 13. O-O N7b6 14. b3 Nxc4 15. bxc4 Nb6 16. c5 Nd5 17. Nd2 Be7 18. Nc4 O-O 19. Bxe7 Nxe7 20. Rfd1 Nf5 21. Rab1 Rab8 22. Rd3 b5 23. Nd6 g6 24. Nxf5 exf5 25. Re1 Rfe8 26. d5 cxd5 27. Rxd5 Rbc8 28. Qd2 Qc6 29. f4 Qc7 30. Rc1 Red8 31. Rd6 Kf8 32. Qd4 Qe7 33. g3 Ke8 34. c6 a5 35. Rd1 Qc7 36. Qc5 b4 37. e6 Rxd6 38. Rxd6 fxe6 39. Rd7 Qxd7 40. cxd7+ Kxd7 41. Qxa5 Rc1+ 42. Kg2 Rc2+ 43. Kf3 Rc3+ 44. Kf2 Rc2+ 45. Ke3 Rc3+ 46. Kd4 Rxg3 47. Qxb4 Rf3 {[%emt 1:47:41]} 48. Qb7+ {[%emt 1:37:29]} 1-0

[Event "Commonwealth CC-Open 2024"]
[Site "Malacca"]
[Date "2024.02.22"]
[Round "5.1"]
[White "Sethuraman, S.P."]
[Black "Vaibhav, Suri"]
[Result "1/2-1/2"]
[ECO "C02"]
[WhiteElo "2594"]
[BlackElo "2596"]
[Annotator "ChessBase"]
[PlyCount "62"]
[EventDate "2024.02.21"]
[EventCountry "MAS"]
[SourceTitle "playchess.com"]
[Source "ChessBase"]
[SourceQuality "1"]
[TimeControl "5400+30"]

1. e4 e6 2. d4 d5 3. e5 c5 4. c3 Nc6 5. Nf3 Qb6 6. a3 Nh6 7. Bd3 cxd4 8. O-O Bd7 9. b4 Rc8 10. Bb2 dxc3 11. Nxc3 Be7 12. Qb1 Nd4 13. Nxd4 Qxd4 14. Nb5 Qh4 15. Nxa7 Rb8 16. Nb5 f6 17. Nd4 Nf7 18. f4 fxe5 19. Nf3 Qxf4 20. Kh1 Qh6 21. Nxe5 Bd6 22. Rxf7 Bxe5 23. Bxe5 Kxf7 24. Qf1+ Ke7 25. Qf2 Rbc8 26. h3 Rhf8 27. Qb6 Rc6 28. Qd4 Rf7 29. Kh2 g5 30. b5 Rc8 31. Qe3 {[%emt 1:45:22]} Qh5 {[%emt 1:41:36]} 1/2-1/2

[Event "Commonwealth CC-Open 2024"]
[Site "Malacca"]
[Date "2024.02.22"]
[Round "5.2"]
[White "Lalit Babu M R"]
[Black "Mitrabha, Guha"]
[Result "1-0"]
[ECO "A13"]
[WhiteElo "2525"]
[BlackElo "2504"]
[Annotator "RC"]
[PlyCount "69"]
[EventDate "2024.02.21"]
[EventCountry "MAS"]
[SourceTitle "playchess.com"]
[Source "ChessBase"]
[SourceQuality "1"]
[TimeControl "5400+30"]

1. Nf3 Nf6 2. c4 e6 3. g3 d5 4. Bg2 d4 5. O-O Nc6 6. d3 Bc5 7. e3 O-O 8. exd4 Bxd4 9. Nxd4 Nxd4 10. Bf4 Re8 11. Be5 Nc6 12. d4 Nd7 13. Bxc6 bxc6 14. Nc3 c5 15. Nb5 Nxe5 16. dxe5 Bd7 17. b3 Bxb5 18. cxb5 a6 19. bxa6 Qxd1 20. Rfxd1 Rxa6 21. Rd7 c6 22. a4 g5 23. Rc1 Rb8 24. Rc3 c4 25. Rxc4 Rxb3 26. Rg4 h6 27. h4 Ra5 28. hxg5 h5 29. Re4 Rd5 30. Rc7 c5 31. Rf4 Rxe5 32. Rfxf7 Rxg5 33. a5 Ra3 34. Rfd7 Rd5 {[%emt 1:26:23]} 35. Rc8# {[%emt 1:33:57]} 1-0

[Event "Commonwealth CC-Open 2024"]
[Site "Malacca"]
[Date "2024.02.22"]
[Round "5.3"]
[White "Mohammad Nubairshah Shaikh"]
[Black "Novak, Attila Robert"]
[Result "1-0"]
[ECO "E05"]
[WhiteElo "2428"]
[BlackElo "2130"]
[Annotator "RC"]
[PlyCount "123"]
[EventDate "2024.02.21"]
[EventCountry "MAS"]
[SourceTitle "playchess.com"]
[Source "ChessBase"]
[SourceQuality "1"]
[TimeControl "5400+30"]

1. c4 e6 2. Nf3 d5 3. g3 Nf6 4. Bg2 Be7 5. O-O O-O 6. d4 dxc4 7. Qc2 a6 8. a4 Bd7 9. Qxc4 Bc6 10. Bf4 Nbd7 11. Rd1 Nb6 12. Qc2 Nbd5 13. Nc3 Nxf4 14. gxf4 Bxf3 15. Bxf3 c6 16. e3 Qa5 17. Kh1 Rfd8 18. Rg1 g6 19. Rac1 Rd7 20. Nb1 Rc8 21. Qb3 Qb4 22. Qxb4 Bxb4 23. Rc2 c5 24. Rgc1 b6 25. Na3 Rb8 26. Nc4 Rc7 27. Ne5 Rbc8 28. Kg2 Ne8 29. d5 exd5 30. Bxd5 Kg7 31. Bc4 Nd6 32. Bxa6 Ra8 33. Rd1 Rxa6 34. Rxd6 Rxa4 35. Rxb6 Raa7 36. Kf3 Rab7 37. Rxb7 Rxb7 38. Ke4 f6 39. Nd3 Kf7 40. Kd5 h5 41. Kc6 Rb8 42. Kc7 Rb5 43. Rc4 Ba5+ 44. Kc6 Rb3 45. Rxc5 Rxd3 46. Rxa5 Rd2 47. b4 Rxf2 48. h4 Rb2 49. b5 g5 50. fxg5 fxg5 51. b6 gxh4 52. Rxh5 Rc2+ 53. Kd7 Rd2+ 54. Kc7 Rc2+ 55. Kd7 Rd2+ 56. Kc8 Rc2+ 57. Kb8 Rc4 58. b7 Kg6 59. Ra5 h3 60. Ra2 Rh4 61. Kc7 Rc4+ {[%emt 1:31:14]} 62. Kb6 {[%emt 2:01:30]} 1-0